[Event "*** Titled Tuesday Blitz"]
[Site "Chess.com"]
[Date "2020.03.03"]
[Round "5"]
[White "kinga2008"]
[Black "pedroholly22"]
[Result "0-1"]
[WhiteElo "1948"]
[BlackElo "2324"]
[TimeControl "180+1"]
[EndTime "13:51:13 PST"]
[Termination "pedroholly22 won by checkmate"]

1. e4 {[%clk 0:03:00.9]} 1... d5 {[%clk 0:02:56.7]} 2. exd5 {[%clk 0:02:58.2]}
2... Qxd5 {[%clk 0:02:57.6]} 3. Nc3 {[%clk 0:02:58.3]} 3... Qd6 {[%clk
0:02:58.5]} 4. g3 {[%clk 0:02:58.4]} 4... Nf6 {[%clk 0:02:58.7]} 5. Bg2 {[%clk
0:02:59]} 5... g6 {[%clk 0:02:59.3]} 6. d4 {[%clk 0:02:57.6]} 6... Bg7 {[%clk
0:02:59.9]} 7. Nge2 {[%clk 0:02:57.5]} 7... O-O {[%clk 0:02:59.8]} 8. O-O {[%clk
0:02:58]} 8... a5 {[%clk 0:02:57.7]} 9. Bf4 {[%clk 0:02:56.4]} 9... Qd8 {[%clk
0:02:57.2]} 10. Ne4 {[%clk 0:02:51.1]} 10... c6 {[%clk 0:02:55.2]} 11. Nxf6+
{[%clk 0:02:49.8]} 11... Bxf6 {[%clk 0:02:55.6]} 12. c3 {[%clk 0:02:50]} 12...
Na6 {[%clk 0:02:54.9]} 13. h4 {[%clk 0:02:41]} 13... Bf5 {[%clk 0:02:51.7]} 14.
Qd2 {[%clk 0:02:29.5]} 14... h5 {[%clk 0:02:51.1]} 15. Bg5 {[%clk 0:02:28.8]}
15... Bg7 {[%clk 0:02:49.6]} 16. Bh6 {[%clk 0:02:28.1]} 16... Nc7 {[%clk
0:02:50]} 17. Bxg7 {[%clk 0:02:25.1]} 17... Kxg7 {[%clk 0:02:50.9]} 18. Nf4
{[%clk 0:02:24.3]} 18... e5 {[%clk 0:02:49.6]} 19. Ne2 {[%clk 0:02:16.9]} 19...
Ne6 {[%clk 0:02:42.7]} 20. Rad1 {[%clk 0:02:09.4]} 20... exd4 {[%clk 0:02:41.7]}
21. Nxd4 {[%clk 0:02:08.8]} 21... Nxd4 {[%clk 0:02:41.2]} 22. Qxd4+ {[%clk
0:02:08.6]} 22... Qxd4 {[%clk 0:02:41.3]} 23. Rxd4 {[%clk 0:02:08.4]} 23... Be6
{[%clk 0:02:41.1]} 24. a3 {[%clk 0:02:05]} 24... a4 {[%clk 0:02:40.5]} 25. Rfd1
{[%clk 0:02:03.5]} 25... Ra5 {[%clk 0:02:41]} 26. R1d2 {[%clk 0:02:02.8]} 26...
Bf5 {[%clk 0:02:35.8]} 27. Be4 {[%clk 0:02:00.5]} 27... Be6 {[%clk 0:02:34.1]}
28. Bd3 {[%clk 0:01:57.4]} 28... Rfa8 {[%clk 0:02:27.3]} 29. Bc4 {[%clk
0:01:54.9]} 29... Re5 {[%clk 0:02:23.2]} 30. Bxe6 {[%clk 0:01:49.2]} 30... Rxe6
{[%clk 0:02:24.1]} 31. Kf1 {[%clk 0:01:49.1]} 31... b5 {[%clk 0:02:22.6]} 32.
Re2 {[%clk 0:01:48.2]} 32... Rae8 {[%clk 0:02:21.8]} 33. Rxe6 {[%clk 0:01:44.7]}
33... Rxe6 {[%clk 0:02:22.7]} 34. Rd2 {[%clk 0:01:45.1]} 34... Kf6 {[%clk
0:02:22]} 35. Re2 {[%clk 0:01:44.8]} 35... Rxe2 {[%clk 0:02:20.8]} 36. Kxe2
{[%clk 0:01:44.9]} 36... Ke5 {[%clk 0:02:21.3]} 37. Ke3 {[%clk 0:01:44.7]} 37...
f6 {[%clk 0:02:20.6]} 38. f3 {[%clk 0:01:40.8]} 38... g5 {[%clk 0:02:18.9]} 39.
f4+ {[%clk 0:01:38.6]} 39... gxf4+ {[%clk 0:02:15.8]} 40. gxf4+ {[%clk
0:01:38.1]} 40... Kf5 {[%clk 0:02:16.4]} 41. Kf3 {[%clk 0:01:37.8]} 41... c5
{[%clk 0:02:14.6]} 42. Ke3 {[%clk 0:01:23.4]} 42... Kg4 {[%clk 0:02:13.7]} 43.
Ke4 {[%clk 0:01:14.3]} 43... Kxh4 {[%clk 0:02:13.7]} 44. Kd5 {[%clk 0:00:29]}
44... Kg3 {[%clk 0:02:12.3]} 45. Kxc5 {[%clk 0:00:29]} 45... h4 {[%clk
0:02:12.1]} 46. Kxb5 {[%clk 0:00:29.2]} 46... h3 {[%clk 0:02:12.4]} 47. Kxa4
{[%clk 0:00:29.8]} 47... h2 {[%clk 0:02:12.9]} 48. b4 {[%clk 0:00:28.9]} 48...
h1=Q {[%clk 0:02:13.8]} 49. b5 {[%clk 0:00:29.1]} 49... Kxf4 {[%clk 0:02:13.5]}
50. b6 {[%clk 0:00:27]} 50... Ke5 {[%clk 0:02:12.6]} 51. Ka5 {[%clk 0:00:26.3]}
51... Kd6 {[%clk 0:02:12.5]} 52. b7 {[%clk 0:00:25.8]} 52... Qxb7 {[%clk
0:02:11.2]} 53. c4 {[%clk 0:00:24.6]} 53... Kc5 {[%clk 0:02:12.1]} 54. Ka4
{[%clk 0:00:18.6]} 54... Qa6+ {[%clk 0:02:10.8]} 55. Kb3 {[%clk 0:00:18.4]}
55... Qxc4+ {[%clk 0:02:11.4]} 56. Kb2 {[%clk 0:00:17.9]} 56... Qd3 {[%clk
0:02:09.9]} 57. Ka2 {[%clk 0:00:09.6]} 57... Qc2+ {[%clk 0:02:09.4]} 58. Ka1
{[%clk 0:00:08.4]} 58... Kc4 {[%clk 0:02:09.9]} 59. a4 {[%clk 0:00:08.1]} 59...
Kb3 {[%clk 0:02:09.5]} 60. a5 {[%clk 0:00:06.6]} 60... Qc1# {[%clk 0:02:10.4]}
0-1

[Event "*** Titled Tuesday Blitz"]
[Site "Chess.com"]
[Date "2020.03.03"]
[Round "5"]
[White "MarcoRiehle"]
[Black "LogoCzar"]
[Result "1-0"]
[WhiteElo "2754"]
[BlackElo "2494"]
[TimeControl "180+1"]
[EndTime "13:51:20 PST"]
[Termination "MarcoRiehle won by resignation"]

1. e4 {[%clk 0:03:00.9]} 1... e5 {[%clk 0:02:25.8]} 2. Nf3 {[%clk 0:02:58.7]}
2... Nc6 {[%clk 0:02:20.1]} 3. Bc4 {[%clk 0:02:58.1]} 3... Nf6 {[%clk 0:02:20]}
4. Ng5 {[%clk 0:02:57.5]} 4... d5 {[%clk 0:02:19.7]} 5. exd5 {[%clk 0:02:57.7]}
5... Na5 {[%clk 0:02:20]} 6. Bb5+ {[%clk 0:02:58.2]} 6... c6 {[%clk 0:02:20.4]}
7. dxc6 {[%clk 0:02:58.6]} 7... bxc6 {[%clk 0:02:21.3]} 8. Be2 {[%clk 0:02:59]}
8... h6 {[%clk 0:02:21.1]} 9. Nh3 {[%clk 0:02:58.6]} 9... Bd6 {[%clk 0:02:18.8]}
10. d3 {[%clk 0:02:58.4]} 10... O-O {[%clk 0:02:17.4]} 11. O-O {[%clk
0:02:57.3]} 11... Nd5 {[%clk 0:02:15.4]} 12. Kh1 {[%clk 0:02:55.1]} 12... f5
{[%clk 0:02:14.3]} 13. Ng1 {[%clk 0:02:54.4]} 13... e4 {[%clk 0:02:09.6]} 14.
Nc3 {[%clk 0:02:49.4]} 14... Nxc3 {[%clk 0:02:05]} 15. bxc3 {[%clk 0:02:48.5]}
15... Qf6 {[%clk 0:01:43.7]} 16. Be3 {[%clk 0:02:27]} 16... c5 {[%clk
0:01:41.5]} 17. dxe4 {[%clk 0:02:22.1]} 17... Bb7 {[%clk 0:01:30.2]} 18. Rb1
{[%clk 0:02:01.5]} 18... Rad8 {[%clk 0:01:28.1]} 19. Rxb7 {[%clk 0:01:59.4]}
19... Nxb7 {[%clk 0:01:01.2]} 20. Qd5+ {[%clk 0:01:57.9]} 20... Kh8 {[%clk
0:01:00.9]} 21. Qxb7 {[%clk 0:01:55.4]} 21... fxe4 {[%clk 0:00:58.1]} 22. Qxe4
{[%clk 0:01:47.9]} 22... Rde8 {[%clk 0:00:57.6]} 23. Qg4 {[%clk 0:01:43.3]}
23... Qxc3 {[%clk 0:00:50.6]} 24. Nf3 {[%clk 0:01:38]} 24... Qxc2 {[%clk
0:00:47.1]} 25. Qc4 {[%clk 0:01:36.3]} 25... Qf5 {[%clk 0:00:41.5]} 26. Bd3
{[%clk 0:01:33.8]} 26... Qh5 {[%clk 0:00:38.9]} 27. Qh4 {[%clk 0:01:14.5]} 27...
Qd5 {[%clk 0:00:26.4]} 28. Bc4 {[%clk 0:01:10.7]} 28... Qc6 {[%clk 0:00:24.3]}
29. Bxh6 {[%clk 0:01:06.6]} 29... Be7 {[%clk 0:00:16.8]} 30. Bg5+ {[%clk
0:01:06.2]} 30... Qh6 {[%clk 0:00:14.6]} 31. Bxe7 {[%clk 0:01:04.1]} 31... Rxe7
{[%clk 0:00:10.6]} 32. Qxe7 {[%clk 0:01:01.9]} 32... Rxf3 {[%clk 0:00:08.5]} 33.
Qe8+ {[%clk 0:00:59.2]} 33... Kh7 {[%clk 0:00:08]} 34. Qe4+ {[%clk 0:00:59.4]}
1-0

[Event "*** Titled Tuesday Blitz"]
[Site "Chess.com"]
[Date "2020.03.03"]
[Round "5"]
[White "norwaytoadog"]
[Black "Sashadav97"]
[Result "0-1"]
[WhiteElo "2283"]
[BlackElo "2552"]
[TimeControl "180+1"]
[EndTime "13:51:23 PST"]
[Termination "Sashadav97 won on time"]

1. e4 {[%clk 0:03:00.3]} 1... c5 {[%clk 0:02:50.5]} 2. Nf3 {[%clk 0:02:59.9]}
2... Nc6 {[%clk 0:02:50.9]} 3. Bb5 {[%clk 0:03:00]} 3... g6 {[%clk 0:02:50.8]}
4. Bxc6 {[%clk 0:03:00.2]} 4... dxc6 {[%clk 0:02:51.7]} 5. d3 {[%clk 0:03:00.3]}
5... Bg7 {[%clk 0:02:52.6]} 6. h3 {[%clk 0:02:59.3]} 6... Nf6 {[%clk 0:02:50]}
7. Nc3 {[%clk 0:02:59.4]} 7... b6 {[%clk 0:02:49.5]} 8. Bf4 {[%clk 0:02:55.6]}
8... Nd7 {[%clk 0:02:48.5]} 9. Qd2 {[%clk 0:02:54.2]} 9... h6 {[%clk 0:02:47]}
10. O-O {[%clk 0:02:52.6]} 10... e5 {[%clk 0:02:47.2]} 11. Be3 {[%clk
0:02:51.7]} 11... Qe7 {[%clk 0:02:47.5]} 12. a3 {[%clk 0:02:50]} 12... f5 {[%clk
0:02:34.4]} 13. exf5 {[%clk 0:02:48.7]} 13... gxf5 {[%clk 0:02:35.3]} 14. Rfe1
{[%clk 0:02:43]} 14... Qd6 {[%clk 0:02:18.2]} 15. Bf4 {[%clk 0:02:23]} 15... O-O
{[%clk 0:02:16]} 16. Bg3 {[%clk 0:02:17.4]} 16... Ba6 {[%clk 0:02:04.4]} 17. b4
{[%clk 0:02:04.7]} 17... Rae8 {[%clk 0:02:03.7]} 18. bxc5 {[%clk 0:01:52.3]}
18... Qxc5 {[%clk 0:02:04]} 19. Ne2 {[%clk 0:01:22.1]} 19... Qd5 {[%clk
0:01:48.7]} 20. Rab1 {[%clk 0:01:10.7]} 20... c5 {[%clk 0:01:45.5]} 21. c4
{[%clk 0:01:01.1]} 21... Qf7 {[%clk 0:01:43.8]} 22. Nc3 {[%clk 0:01:00.3]} 22...
Bb7 {[%clk 0:01:42.8]} 23. Nh2 {[%clk 0:00:50]} 23... f4 {[%clk 0:01:35.7]} 24.
Bh4 {[%clk 0:00:49.7]} 24... Qh5 {[%clk 0:01:36.1]} 25. g3 {[%clk 0:00:39.5]}
25... Bf6 {[%clk 0:01:24.1]} 26. Bxf6 {[%clk 0:00:35.6]} 26... Nxf6 {[%clk
0:01:25]} 27. h4 {[%clk 0:00:27.7]} 27... Qg6 {[%clk 0:01:16.5]} 28. Nf1 {[%clk
0:00:18]} 28... Qg4 {[%clk 0:01:00.4]} 29. Ne4 {[%clk 0:00:15.6]} 29... Qh3
{[%clk 0:01:00.2]} 30. Qe2 {[%clk 0:00:10.9]} 30... f3 {[%clk 0:00:51.4]} 31.
Nxf6+ {[%clk 0:00:07.1]} 31... Rxf6 {[%clk 0:00:50.9]} 0-1

[Event "*** Titled Tuesday Blitz"]
[Site "Chess.com"]
[Date "2020.03.03"]
[Round "5"]
[White "Bigfish1995"]
[Black "Saitama_Hero"]
[Result "1-0"]
[WhiteElo "3083"]
[BlackElo "2310"]
[TimeControl "180+1"]
[EndTime "13:51:26 PST"]
[Termination "Bigfish1995 won by resignation"]

1. d4 {[%clk 0:03:00.9]} 1... Nf6 {[%clk 0:02:58.7]} 2. c4 {[%clk 0:03:01.1]}
2... g6 {[%clk 0:02:58.7]} 3. Bg5 {[%clk 0:02:59.6]} 3... Bg7 {[%clk 0:02:56.4]}
4. Nc3 {[%clk 0:02:58]} 4... d5 {[%clk 0:02:56.7]} 5. Bxf6 {[%clk 0:02:55.3]}
5... Bxf6 {[%clk 0:02:57.6]} 6. cxd5 {[%clk 0:02:56]} 6... c6 {[%clk 0:02:57.9]}
7. e4 {[%clk 0:02:55]} 7... O-O {[%clk 0:02:54.2]} 8. Nf3 {[%clk 0:02:53.2]}
8... cxd5 {[%clk 0:02:50.2]} 9. Nxd5 {[%clk 0:02:47]} 9... Bg7 {[%clk
0:02:49.2]} 10. Ne3 {[%clk 0:02:37.7]} 10... Nc6 {[%clk 0:02:32.2]} 11. e5
{[%clk 0:02:37.2]} 11... Qb6 {[%clk 0:02:27.6]} 12. Bc4 {[%clk 0:02:15.4]} 12...
Rd8 {[%clk 0:01:52.8]} 13. O-O {[%clk 0:02:08.5]} 13... Nxd4 {[%clk 0:01:49.4]}
14. Nd5 {[%clk 0:02:08.2]} 14... Rxd5 {[%clk 0:01:44.1]} 15. Bxd5 {[%clk
0:02:06.5]} 15... Nxf3+ {[%clk 0:01:39.6]} 16. Qxf3 {[%clk 0:02:05.3]} 16... e6
{[%clk 0:01:40.1]} 17. Bb3 {[%clk 0:02:04.8]} 17... Bd7 {[%clk 0:01:38.6]} 18.
Rad1 {[%clk 0:02:04.2]} 18... Bc6 {[%clk 0:01:38.5]} 19. Qf4 {[%clk 0:02:02.5]}
19... a5 {[%clk 0:01:35.8]} 20. Rd2 {[%clk 0:01:51.4]} 20... a4 {[%clk
0:01:34.9]} 21. Bc4 {[%clk 0:01:50.6]} 21... Qc5 {[%clk 0:01:30]} 22. Re1 {[%clk
0:01:46.3]} 22... b5 {[%clk 0:01:22.3]} 23. Bf1 {[%clk 0:01:43.4]} 23... b4
{[%clk 0:00:56.6]} 24. Qd4 {[%clk 0:01:39.4]} 24... Qa5 {[%clk 0:00:51.5]} 25.
Bc4 {[%clk 0:01:03.4]} 25... Bh6 {[%clk 0:00:43.5]} 26. Rdd1 {[%clk 0:00:59.1]}
26... Bf8 {[%clk 0:00:42.7]} 27. h4 {[%clk 0:00:54]} 27... Bc5 {[%clk
0:00:40.9]} 28. Qf4 {[%clk 0:00:53.3]} 28... h5 {[%clk 0:00:27.2]} 29. Qf6
{[%clk 0:00:49.2]} 29... Qa7 {[%clk 0:00:15.7]} 30. Bxe6 {[%clk 0:00:45.7]}
30... Rf8 {[%clk 0:00:07.6]} 31. Qxg6+ {[%clk 0:00:44.3]} 1-0

[Event "*** Titled Tuesday Blitz"]
[Site "Chess.com"]
[Date "2020.03.03"]
[Round "5"]
[White "WeAintSurePal"]
[Black "boasovietica"]
[Result "1-0"]
[WhiteElo "2319"]
[BlackElo "2468"]
[TimeControl "180+1"]
[EndTime "13:51:26 PST"]
[Termination "WeAintSurePal won by checkmate"]

1. d4 {[%clk 0:03:00.9]} 1... Nf6 {[%clk 0:02:59]} 2. Bf4 {[%clk 0:03:00.4]}
2... g6 {[%clk 0:02:58.7]} 3. e3 {[%clk 0:02:59.4]} 3... Bg7 {[%clk 0:02:58.6]}
4. h3 {[%clk 0:02:58.8]} 4... O-O {[%clk 0:02:58.3]} 5. c3 {[%clk 0:02:58.9]}
5... b6 {[%clk 0:02:57.6]} 6. Nd2 {[%clk 0:02:58.6]} 6... Bb7 {[%clk 0:02:57.7]}
7. Ngf3 {[%clk 0:02:59.1]} 7... d6 {[%clk 0:02:57.9]} 8. Be2 {[%clk 0:02:57.6]}
8... Nbd7 {[%clk 0:02:57.9]} 9. Bh2 {[%clk 0:02:58]} 9... Re8 {[%clk 0:02:57.4]}
10. O-O {[%clk 0:02:58.4]} 10... Ne4 {[%clk 0:02:56.6]} 11. a4 {[%clk
0:02:57.2]} 11... a6 {[%clk 0:02:56]} 12. Qb3 {[%clk 0:02:54.6]} 12... Nxd2
{[%clk 0:02:48]} 13. Nxd2 {[%clk 0:02:54.4]} 13... e5 {[%clk 0:02:47.9]} 14.
Rfd1 {[%clk 0:02:41.4]} 14... exd4 {[%clk 0:02:32.2]} 15. cxd4 {[%clk
0:02:38.7]} 15... Bxd4 {[%clk 0:02:17.2]} 16. Bc4 {[%clk 0:02:35.6]} 16... Qg5
{[%clk 0:02:00.7]} 17. Bg3 {[%clk 0:02:22.3]} 17... Rxe3 {[%clk 0:01:40.7]} 18.
fxe3 {[%clk 0:02:06]} 18... Qxg3 {[%clk 0:01:33.9]} 19. Bd5 {[%clk 0:01:59.1]}
19... Nc5 {[%clk 0:01:17.4]} 20. Qc4 {[%clk 0:01:37.4]} 20... Bxe3+ {[%clk
0:01:11.5]} 21. Kh1 {[%clk 0:01:37.2]} 21... b5 {[%clk 0:00:44.2]} 22. axb5
{[%clk 0:01:25.8]} 22... axb5 {[%clk 0:00:44]} 23. Rxa8+ {[%clk 0:01:26.7]}
23... Bxa8 {[%clk 0:00:44.2]} 24. Qa2 {[%clk 0:01:23.6]} 24... Bxd5 {[%clk
0:00:32.7]} 25. Qxd5 {[%clk 0:01:23.1]} 25... Bxd2 {[%clk 0:00:14.9]} 26. Rxd2
{[%clk 0:01:08.2]} 26... Qe1+ {[%clk 0:00:14.6]} 27. Kh2 {[%clk 0:01:07.1]}
27... Ne4 {[%clk 0:00:15.2]} 28. Rd3 {[%clk 0:01:03.5]} 28... Nf2 {[%clk
0:00:15]} 29. Rf3 {[%clk 0:00:58.9]} 29... Qh1+ {[%clk 0:00:06.5]} 30. Kg3
{[%clk 0:00:58.9]} 30... Ne4+ {[%clk 0:00:02.1]} 31. Qxe4 {[%clk 0:00:57.4]}
31... Qc1 {[%clk 0:00:02.4]} 32. Qe8+ {[%clk 0:00:56.4]} 32... Kg7 {[%clk
0:00:02.1]} 33. Qxf7+ {[%clk 0:00:57.3]} 33... Kh6 {[%clk 0:00:02.5]} 34. Qf8+
{[%clk 0:00:57.6]} 34... Kh5 {[%clk 0:00:01.2]} 35. Qe7 {[%clk 0:00:54.5]} 35...
Qxb2 {[%clk 0:00:01.3]} 36. Qh4# {[%clk 0:00:53.9]} 1-0

[Event "*** Titled Tuesday Blitz"]
[Site "Chess.com"]
[Date "2020.03.03"]
[Round "5"]
[White "kingofthenil"]
[Black "iturrizaga"]
[Result "0-1"]
[WhiteElo "2572"]
[BlackElo "2932"]
[TimeControl "180+1"]
[EndTime "13:51:27 PST"]
[Termination "iturrizaga won on time"]

1. e4 {[%clk 0:02:53.8]} 1... c5 {[%clk 0:02:59.5]} 2. d3 {[%clk 0:02:53.3]}
2... g6 {[%clk 0:02:59.1]} 3. g3 {[%clk 0:02:53.6]} 3... Bg7 {[%clk 0:02:59.4]}
4. Bg2 {[%clk 0:02:54.5]} 4... Nc6 {[%clk 0:02:59.7]} 5. f4 {[%clk 0:02:55.4]}
5... d6 {[%clk 0:03:00]} 6. Nf3 {[%clk 0:02:56]} 6... e5 {[%clk 0:03:00.3]} 7.
O-O {[%clk 0:02:55.7]} 7... Nge7 {[%clk 0:03:00.7]} 8. Nc3 {[%clk 0:02:55.7]}
8... O-O {[%clk 0:03:01.2]} 9. f5 {[%clk 0:02:56.2]} 9... gxf5 {[%clk
0:03:00.9]} 10. Nh4 {[%clk 0:02:56.7]} 10... fxe4 {[%clk 0:03:00.6]} 11. dxe4
{[%clk 0:02:57.6]} 11... Nd4 {[%clk 0:02:59.2]} 12. Qh5 {[%clk 0:02:34.5]} 12...
Qe8 {[%clk 0:02:41.8]} 13. Nf5 {[%clk 0:02:23.7]} 13... Nexf5 {[%clk 0:02:29.1]}
14. exf5 {[%clk 0:02:24.6]} 14... f6 {[%clk 0:02:29.5]} 15. Qh3 {[%clk
0:01:51.6]} 15... Nxc2 {[%clk 0:02:25.3]} 16. Rb1 {[%clk 0:00:39]} 16... Bd7
{[%clk 0:02:18.8]} 17. Bd5+ {[%clk 0:00:18.4]} 17... Kh8 {[%clk 0:02:17.2]} 18.
Ne4 {[%clk 0:00:19.3]} 18... Qe7 {[%clk 0:02:12.8]} 19. g4 {[%clk 0:00:17]}
19... Bc6 {[%clk 0:02:10.7]} 20. Bxc6 {[%clk 0:00:15.1]} 20... bxc6 {[%clk
0:02:11.6]} 21. g5 {[%clk 0:00:15.8]} 21... fxg5 {[%clk 0:01:18.3]} 22. Bxg5
{[%clk 0:00:16.7]} 22... Qd7 {[%clk 0:01:17.9]} 23. Qg2 {[%clk 0:00:17]} 23...
d5 {[%clk 0:01:00.2]} 24. f6 {[%clk 0:00:14.7]} 24... dxe4 {[%clk 0:00:59.4]}
25. fxg7+ {[%clk 0:00:13.6]} 25... Qxg7 {[%clk 0:00:58.9]} 26. Kh1 {[%clk
0:00:11.2]} 26... Nd4 {[%clk 0:00:54.2]} 27. Rxf8+ {[%clk 0:00:02.8]} 27... Rxf8
{[%clk 0:00:53.3]} 28. Rg1 {[%clk 0:00:02.6]} 28... Nf3 {[%clk 0:00:49.4]} 29.
Bf6 {[%clk 0:00:01.6]} 29... Qxf6 {[%clk 0:00:47.7]} 30. Qg8+ {[%clk 0:00:01.2]}
30... Rxg8 {[%clk 0:00:47.2]} 0-1

[Event "*** Titled Tuesday Blitz"]
[Site "Chess.com"]
[Date "2020.03.03"]
[Round "5"]
[White "ShahMatKanal"]
[Black "IgorBjelobrk"]
[Result "1-0"]
[WhiteElo "2509"]
[BlackElo "2696"]
[TimeControl "180+1"]
[EndTime "13:51:31 PST"]
[Termination "ShahMatKanal won by checkmate"]

1. d4 {[%clk 0:03:00.9]} 1... Nf6 {[%clk 0:02:56.5]} 2. c4 {[%clk 0:03:00.6]}
2... e6 {[%clk 0:02:56.3]} 3. a3 {[%clk 0:02:58.3]} 3... d5 {[%clk 0:02:55.7]}
4. cxd5 {[%clk 0:02:57.8]} 4... exd5 {[%clk 0:02:55.6]} 5. Nc3 {[%clk
0:02:58.2]} 5... Bd6 {[%clk 0:02:52.7]} 6. Bg5 {[%clk 0:02:57.6]} 6... Be6
{[%clk 0:02:49.4]} 7. e3 {[%clk 0:02:56.4]} 7... a6 {[%clk 0:02:48.3]} 8. Bd3
{[%clk 0:02:50.9]} 8... Nbd7 {[%clk 0:02:46]} 9. Nge2 {[%clk 0:02:49.8]} 9...
O-O {[%clk 0:02:44.9]} 10. Nf4 {[%clk 0:02:47.3]} 10... c6 {[%clk 0:02:44.6]}
11. Nxe6 {[%clk 0:02:38.7]} 11... fxe6 {[%clk 0:02:44.2]} 12. f4 {[%clk
0:02:39.2]} 12... Be7 {[%clk 0:02:18.4]} 13. O-O {[%clk 0:02:31.5]} 13... Ne8
{[%clk 0:02:13.9]} 14. Qh5 {[%clk 0:02:23.2]} 14... g6 {[%clk 0:02:11]} 15. Qh4
{[%clk 0:02:16.4]} 15... Bxg5 {[%clk 0:02:09.4]} 16. fxg5 {[%clk 0:02:16.4]}
16... Nd6 {[%clk 0:02:03]} 17. Rxf8+ {[%clk 0:02:12.4]} 17... Qxf8 {[%clk
0:02:01.8]} 18. Rf1 {[%clk 0:02:12.8]} 18... Qe7 {[%clk 0:02:01.3]} 19. e4
{[%clk 0:02:08.8]} 19... Rf8 {[%clk 0:01:56.4]} 20. Rxf8+ {[%clk 0:01:59]} 20...
Nxf8 {[%clk 0:01:43.4]} 21. Qf4 {[%clk 0:01:48.2]} 21... Nf7 {[%clk 0:01:32.5]}
22. h4 {[%clk 0:01:43.5]} 22... e5 {[%clk 0:01:28.6]} 23. dxe5 {[%clk 0:01:28]}
23... Nxe5 {[%clk 0:01:27]} 24. Bc2 {[%clk 0:01:26.3]} 24... d4 {[%clk
0:01:25.8]} 25. Bb3+ {[%clk 0:01:26.1]} 25... Kg7 {[%clk 0:01:24.7]} 26. Ne2
{[%clk 0:01:23]} 26... c5 {[%clk 0:01:21.4]} 27. h5 {[%clk 0:01:21]} 27... c4
{[%clk 0:01:01.8]} 28. Bd1 {[%clk 0:01:05.7]} 28... d3 {[%clk 0:00:57.3]} 29.
Nd4 {[%clk 0:01:01.9]} 29... Nfd7 {[%clk 0:00:48]} 30. Nf5+ {[%clk 0:00:53.2]}
30... gxf5 {[%clk 0:00:46.8]} 31. exf5 {[%clk 0:00:54.1]} 31... Qc5+ {[%clk
0:00:38]} 32. Kh1 {[%clk 0:00:52.5]} 32... b5 {[%clk 0:00:24.4]} 33. h6+ {[%clk
0:00:52.5]} 33... Kf7 {[%clk 0:00:23.1]} 34. Bh5+ {[%clk 0:00:53.4]} 34... Kf8
{[%clk 0:00:21.4]} 35. g6 {[%clk 0:00:53.5]} 35... Nf6 {[%clk 0:00:17.7]} 36.
Qg5 {[%clk 0:00:50.3]} 36... Qd6 {[%clk 0:00:16.7]} 37. gxh7 {[%clk 0:00:47.5]}
37... Ke7 {[%clk 0:00:09.2]} 38. h8=Q {[%clk 0:00:46.2]} 38... d2 {[%clk
0:00:09.5]} 39. Qe8# {[%clk 0:00:46.2]} 1-0

[Event "*** Titled Tuesday Blitz"]
[Site "Chess.com"]
[Date "2020.03.03"]
[Round "5"]
[White "dusanacns"]
[Black "GMKrikor"]
[Result "1-0"]
[WhiteElo "2648"]
[BlackElo "2815"]
[TimeControl "180+1"]
[EndTime "13:51:34 PST"]
[Termination "dusanacns won by resignation"]

1. e4 {[%clk 0:03:00.9]} 1... c5 {[%clk 0:02:59.7]} 2. Nf3 {[%clk 0:03:01.2]}
2... g6 {[%clk 0:02:57.4]} 3. c3 {[%clk 0:03:01]} 3... d5 {[%clk 0:02:57.1]} 4.
e5 {[%clk 0:03:01]} 4... Nc6 {[%clk 0:02:55.2]} 5. d4 {[%clk 0:02:59.3]} 5...
cxd4 {[%clk 0:02:55.6]} 6. cxd4 {[%clk 0:03:00.2]} 6... Bg4 {[%clk 0:02:55.9]}
7. Bb5 {[%clk 0:03:00.3]} 7... Qa5+ {[%clk 0:02:54.2]} 8. Nc3 {[%clk 0:02:59.5]}
8... e6 {[%clk 0:02:54.3]} 9. h3 {[%clk 0:02:47.9]} 9... Bxf3 {[%clk 0:02:50.8]}
10. Qxf3 {[%clk 0:02:48.8]} 10... Bg7 {[%clk 0:02:18.8]} 11. O-O {[%clk
0:02:27.5]} 11... Ne7 {[%clk 0:02:18.2]} 12. Rd1 {[%clk 0:02:08.6]} 12... O-O
{[%clk 0:02:04.6]} 13. Bg5 {[%clk 0:02:01.6]} 13... a6 {[%clk 0:02:00.1]} 14.
Bxc6 {[%clk 0:01:20.6]} 14... Nxc6 {[%clk 0:02:00.2]} 15. h4 {[%clk 0:01:13.3]}
15... h5 {[%clk 0:01:43.2]} 16. g4 {[%clk 0:01:06.4]} 16... hxg4 {[%clk
0:01:40.1]} 17. Qxg4 {[%clk 0:01:07.3]} 17... Qb4 {[%clk 0:01:40.9]} 18. a3
{[%clk 0:00:57.4]} 18... Qc4 {[%clk 0:01:27.5]} 19. Qf4 {[%clk 0:00:53.2]} 19...
b5 {[%clk 0:01:01.1]} 20. Rac1 {[%clk 0:00:52.5]} 20... Qb3 {[%clk 0:01:00.7]}
21. h5 {[%clk 0:00:46.5]} 21... b4 {[%clk 0:00:56.9]} 22. axb4 {[%clk
0:00:43.6]} 22... Qxb4 {[%clk 0:00:53.9]} 23. Bf6 {[%clk 0:00:39]} 23... Bxf6
{[%clk 0:00:28.4]} 24. exf6 {[%clk 0:00:34.9]} 24... Rfe8 {[%clk 0:00:28.8]} 25.
hxg6 {[%clk 0:00:28.6]} 25... fxg6 {[%clk 0:00:20.4]} 26. f7+ {[%clk 0:00:28.7]}
26... Kg7 {[%clk 0:00:21.3]} 27. fxe8=Q {[%clk 0:00:28.5]} 27... Rxe8 {[%clk
0:00:22.2]} 28. Nxd5 {[%clk 0:00:28.4]} 1-0